fUST/lending_fUST_20250812
["ID","MTS","AMOUNT","RATE_DAILY","PERIOD"]
[378710884,1754981447614,-460.0,0.00018669,2]
[378710885,1754981447623,-460.0,0.00018669,2]
[378710886,1754981447632,-460.0,0.00018669,2]
[378710887,1754981447641,-561.26,0.00018669,2]
[378710888,1754981447650,-1088.31,0.00018669,2]
[378710889,1754981447660,-1235.08,0.00018669,2]
[378710890,1754981447669,-1733.87,0.00018669,2]
[378710891,1754981447678,-460.0,0.00018669,2]
[378710892,1754981447688,-500.0,0.00018669,2]
[378710893,1754981447697,-460.0,0.00018669,2]
[378710894,1754981447706,-465.79224625,0.00018669,2]
[378710895,1754981447715,-460.0,0.00018669,2]
[378710896,1754981447724,-460.0,0.00018669,2]
[378710897,1754981447733,-152.771382,0.00018669,2]
[378710898,1754981447742,-151.0,0.00018669,2]
[378710899,1754981447751,-460.0,0.00018669,2]
[378710900,1754981447761,-259.578712,0.00018669,2]
[378710901,1754981447771,-728.94,0.00018669,2]
[378710902,1754981447780,-460.0,0.00018669,2]
[378710903,1754981447790,-742.72,0.00018669,2]
[378710904,1754981447799,-460.0,0.00018669,2]
[378710905,1754981447808,-460.0,0.00018669,2]
[378710906,1754981447818,-460.0,0.00018669,2]
[378710907,1754981447827,-605.94,0.00018669,2]
[378710908,1754981447836,-460.0,0.00018669,2]
[378710909,1754981447845,-460.0,0.00018669,2]
[378710910,1754981447854,-460.0,0.00018669,2]
[378710911,1754981447863,-151.0,0.00018669,2]
[378710912,1754981447872,-151.0,0.00018669,2]
[378710913,1754981447881,-35236.1518865,0.00018669,2]
[378710914,1754981447900,-45020.05462988,0.00018669,2]
[378710915,1754981447910,-4918.3098011,0.0001867,2]
[378710916,1754981476754,996.89338837,0.00018569,2]
[378710917,1754981476779,20000.0,0.00018569,2]
[378710918,1754981476806,20000.0,0.00018569,2]
[378710919,1754981476829,20000.0,0.00018569,2]
[378710920,1754981476854,20000.0,0.00018569,2]
[378710921,1754981476877,20000.0,0.00018569,2]
[378710922,1754981476901,20000.0,0.00018569,2]
[378710923,1754981476924,20000.0,0.00018569,2]
[378710924,1754981476947,20000.0,0.00018569,2]
[378710925,1754981476969,20000.0,0.00018569,2]
[378710926,1754981476992,9003.10661163,0.00018569,2]
[378710927,1754981485164,5000.0,0.00018603,2]
[378710928,1754981493920,5000.0,0.00018603,2]
[378710929,1754981502777,996.89338837,0.00018603,2]
[378710930,1754981502801,4003.10661163,0.00018603,2]
[378710931,1754981511050,5000.0,0.00018603,2]
[378710932,1754981519817,5000.0,0.00018603,2]
[378710933,1754981523724,547.30161457,0.00018567,2]
[378710934,1754981528589,5000.0,0.00018603,2]
[378710935,1754981537388,449.5917738,0.00018603,2]
[378710936,1754981537410,451.30151683,0.00018603,2]
[378710937,1754981539411,157.63588714,7.1e-07,2]
[378710938,1754981545552,5000.0,0.00018603,2]
[378710939,1754981558690,5967.32321182,0.000185,2]
[378710940,1754981561014,5000.0,0.00018603,2]
[378710941,1754981572381,150.0,0.00020526,30]
[378710942,1754981572858,157.24,0.00022393,30]
[378710943,1754981578181,3423.73938421,0.00018603,2]
[378710944,1754981578205,1576.26061579,0.00018603,2]
[378710945,1754981593699,5000.0,0.0001901,6]
[378710946,1754981610540,5000.0,0.0001901,6]
[378710947,1754981626130,5000.0,0.0001901,6]
[378710948,1754981639443,18423.73938421,0.00018569,2]
[378710949,1754981639466,20000.0,0.00018569,2]
[378710950,1754981639489,20000.0,0.00018569,2]
[378710951,1754981639511,20000.0,0.00018569,2]
[378710952,1754981639534,20000.0,0.00018569,2]
[378710953,1754981639556,20000.0,0.00018569,2]
[378710954,1754981639579,20000.0,0.00018569,2]
[378710955,1754981639602,16356.95521537,0.00018569,2]
[378710956,1754981642248,3643.04478463,0.00018603,2]
[378710957,1754981642272,1356.95521537,0.00018603,2]
[378710958,1754981650423,164.70161008,0.00018603,2]
[378710959,1754981653147,150.0,0.00020408,30]
[378710960,1754981653613,153.89,0.00022263,30]
[378710961,1754981656962,184.96418636,0.0001857,2]
[378710962,1754981658578,5000.0,0.00018603,2]
[378710963,1754981676340,5000.0,0.00018603,2]
[378710964,1754981691553,5000.0,0.00018603,2]
[378710965,1754981708043,3293.37898819,0.00018603,2]
[378710966,1754981708068,1706.62101181,0.00018603,2]
[378710967,1754981724312,5000.0,0.00018603,2]
[378710968,1754981732433,510.14203334,0.00018603,2]
[378710969,1754981739498,154.78044,0.000231,30]
[378710970,1754981740767,5000.0,0.00018603,2]
[378710971,1754981756977,5000.0,0.00018603,2]
[378710972,1754981773035,2783.23695485,0.00018603,2]
[378710973,1754981773058,2216.76304515,0.00018603,2]
[378710974,1754981789043,5000.0,0.00018603,2]
[378710975,1754981801336,2881.6671376,0.00017669,2]
[378710976,1754981804310,5000.0,0.00018603,2]
[378710977,1754981820157,4901.56981725,0.00018603,2]
[378710978,1754981820182,98.43018275,0.00018603,2]
[378710979,1754981836331,5000.0,0.00018603,2]
[378710980,1754981853117,5000.0,0.00018603,2]
[378710981,1754981868880,5000.0,0.00018603,2]
[378710982,1754981869313,419.296663,0.00013699,2]
[378710984,1754981884645,4482.27315425,0.00018603,2]
[378710985,1754981884669,517.72684575,0.00018603,2]
[378710986,1754981891396,711.1145888,0.00018567,2]
[378710987,1754981894149,1836.007711,0.00017669,2]
[378710988,1754981900009,5000.0,0.00018603,2]
[378710989,1754981915532,5000.0,0.00018603,2]
[378710990,1754981923439,252.21515649,0.00018603,2]
[378710991,1754981932772,5000.0,0.00018603,2]
[378710992,1754981947880,1682.93569796,0.00018603,2]
[378710993,1754981947904,3317.06430204,0.00018603,2]
[378710994,1754981964094,5000.0,0.00018603,2]
[378710995,1754981979034,179.91004498,0.00018432,2]
[378710996,1754981979519,5000.0,0.00018603,2]
[378710997,1754981983703,1744.3245137,0.00017669,2]
[378710998,1754981994955,4758.70113928,0.00018603,2]
[378710999,1754981994978,241.29886072,0.00018603,2]
[378711000,1754981999120,184.96418633,0.00018568,2]
[378711001,1754982011086,5000.0,0.00018603,2]
[378711002,1754982016113,10000.0,0.00017668,2]
[378711003,1754982025225,4573.73695295,0.00017668,2]
[378711004,1754982025250,20000.0,0.00017668,2]
[378711005,1754982025274,326.26304705,0.00017668,2]
[378711006,1754982026285,5000.0,0.00018603,2]
[378711007,1754982042555,5000.0,0.00018603,2]
[378711010,1754982057902,5000.0,0.00018603,2]
[378711011,1754982073343,4673.73695295,0.00018603,2]
[378711012,1754982073366,326.26304705,0.00018603,2]
[378711013,1754982089038,150.0,0.00022714,30]
[378711014,1754982089490,5000.0,0.00018603,2]
[378711015,1754982090565,218.0,0.00018505,2]
[378711016,1754982096332,258.419962,0.00018106,2]
[378711017,1754982096726,689.576301,0.00018106,2]
[378711018,1754982097099,501.45431263,0.00018107,2]
[378711019,1754982099747,218.0,0.00018489,2]
[378711020,1754982104943,5000.0,0.00018603,2]
[378711021,1754982120583,5000.0,0.00018603,2]
[378711022,1754982137300,2788.28637732,0.00018603,2]
[378711023,1754982137327,2211.71362268,0.00018603,2]
[378711024,1754982146909,208.4810105,0.00017668,2]
[378711025,1754982153696,5000.0,0.00018603,2]
[378711026,1754982169650,5000.0,0.00018603,2]
[378711027,1754982173115,150.0,0.00022714,30]
[378711028,1754982186223,5000.0,0.0001901,6]
[378711029,1754982201671,5000.0,0.0001901,6]
[378711030,1754982217093,5000.0,0.0001901,6]
[378711031,1754982232683,5000.0,0.0001901,6]
[378711032,1754982235945,7579.80536682,0.00017809,2]
[378711033,1754982235965,1307.36113048,0.00017809,2]
[378711034,1754982248180,5000.0,0.00018603,2]
[378711035,1754982254596,150.0,0.00022726,30]
[378711036,1754982263900,5000.0,0.00018603,2]
[378711037,1754982280414,5000.0,0.00018603,2]
[378711038,1754982295732,3692.63886952,0.00018603,2]
[378711039,1754982295976,1307.36113048,0.00018603,2]
[378711040,1754982311810,5000.0,0.00018603,2]
[378711041,1754982329257,5000.0,0.00018603,2]
[378711044,1754982335362,184.96418633,0.00018568,2]
[378711045,1754982335818,150.0,0.00019297,30]
[378711046,1754982336422,150.0,0.00020216,30]
[378711047,1754982336691,218.5,0.00021135,30]
[378711048,1754982337145,291.33,0.00022054,30]
[378711049,1754982337572,364.17,0.00022972,30]
[378711050,1754982340597,154.849507,0.000231,30]
[378711051,1754982345881,5000.0,0.00018603,2]
[378711052,1754982361517,1390.91586899,0.00018603,2]
[378711055,1754982411537,693.77339612,0.00018566,2]
[378711056,1754982417160,150.0,0.00019312,30]
[378711057,1754982417604,150.0,0.00020232,30]
[378711058,1754982418029,199.29,0.00021151,30]
[378711059,1754982418701,265.72,0.00022071,30]
[378711060,1754982418910,332.15,0.0002299,30]
[378711061,1754982447023,277.138039,0.00017807,2]
[378711062,1754982499235,150.0,0.000193,30]
[378711063,1754982499682,150.0,0.00020219,30]
[378711064,1754982500100,181.34,0.00021138,30]
[378711065,1754982500524,241.78,0.00022057,30]
[378711066,1754982500951,302.23,0.00022976,30]
[378711067,1754982510275,212.5326426,0.00017666,2]
[378711068,1754982519492,10000.0,0.00026,120]
[378711072,1754982578339,150.0,0.00019382,30]
[378711073,1754982578733,150.0,0.00020305,30]
[378711074,1754982579173,164.56,0.00021228,30]
[378711075,1754982579636,219.41,0.00022151,30]
[378711076,1754982580082,274.26,0.00023074,30]
[378711088,1754982637318,-153.01023951,0.00018657,2]
[378711089,1754982637328,-255.68080307,0.00018657,2]
[378711090,1754982637337,-1200.0,0.00018663,2]
[378711091,1754982637346,-300.0,0.00018663,2]
[378711092,1754982637355,-506.0,0.00018664,2]
[378711093,1754982637364,-460.0,0.00018664,2]
[378711094,1754982637373,-460.0,0.00018664,2]
[378711095,1754982637382,-460.0,0.00018664,2]
[378711096,1754982637391,-2139.63,0.00018664,2]
[378711097,1754982637401,-460.0,0.00018664,2]
[378711098,1754982637409,-604.80092668,0.00018664,2]
[378711099,1754982637419,-3693.51,0.00018664,2]
[378711100,1754982637430,-460.0,0.00018664,2]
[378711101,1754982637439,-460.0,0.00018664,2]
[378711102,1754982637448,-862.73,0.00018664,2]
[378711103,1754982637458,-510.32,0.00018664,2]
[378711104,1754982637468,-460.0,0.00018664,2]
[378711105,1754982637478,-460.0,0.00018664,2]
[378711106,1754982637487,-3068.79,0.00018664,2]
[378711107,1754982637497,-2553.28,0.00018664,2]
[378711108,1754982637508,-187.66515556,0.00018664,2]
[378711109,1754982637517,-465.96498739,0.00018664,2]
[378711110,1754982637526,-155.6919122,0.00018664,2]
[378711111,1754982637535,-50000.0,0.00018665,2]
[378711112,1754982637544,-460.0,0.00018665,2]
[378711113,1754982637553,-622.52,0.00018665,2]
[378711114,1754982637562,-460.0,0.00018665,2]
[378711115,1754982637571,-3377.92,0.00018665,2]
[378711116,1754982637580,-584.05,0.00018665,2]
[378711117,1754982637590,-476.57804153,0.00018665,2]
[378711118,1754982637598,-897.9,0.00018665,2]
[378711119,1754982637607,-460.0,0.00018665,2]
[378711120,1754982637616,-460.0,0.00018665,2]
[378711121,1754982637626,-1854.79,0.00018665,2]
[378711122,1754982637635,-878.68,0.00018665,2]
[378711123,1754982637644,-466.81592561,0.00018665,2]
[378711124,1754982637653,-916.74,0.00018665,2]
[378711125,1754982637662,-460.0,0.00018665,2]
[378711126,1754982637671,-1160.92,0.00018665,2]
[378711127,1754982637681,-460.0,0.00018665,2]
[378711128,1754982637690,-363.36591585,0.00018665,2]
[378711129,1754982637700,-460.0,0.00018665,2]
[378711130,1754982637710,-537.88,0.00018665,2]
[378711131,1754982637719,-460.0,0.00018665,2]
[378711132,1754982637729,-460.0,0.00018665,2]
[378711133,1754982637738,-460.0,0.00018665,2]
[378711134,1754982637748,-1062.13,0.00018665,2]
[378711135,1754982637757,-801.99308274,0.00018665,2]
[378711136,1754982637773,-439.12691726,0.00018665,2]
[378711137,1754982637782,-460.0,0.00018665,2]
[378711138,1754982637792,-157.54730631,0.00018665,2]
[378711185,1754982638339,-274.64385028,0.00018664,2]
[378711187,1754982638351,-185.35614972,0.00018664,2]
[378711189,1754982638360,-342.45269369,0.00018665,2]
[378711191,1754982638369,-500.0,0.00018665,2]
[378711193,1754982638378,-500.0,0.00018665,2]
[378711194,1754982638387,-627.52,0.00018665,2]
[378711196,1754982638396,-659.48892437,0.00018665,2]
[378711204,1754982638463,-460.0,0.00018665,2]
[378711249,1754982640345,-542.14107563,0.00018665,2]
[378711251,1754982640355,-460.0,0.00018665,2]
[378711253,1754982640364,-460.0,0.00018665,2]
[378711255,1754982640373,-460.0,0.00018665,2]
[378711257,1754982640382,-698.57,0.00018665,2]
[378711259,1754982640391,-711.78,0.00018665,2]
[378711261,1754982640401,-161.61153859,0.00018665,2]
[378711263,1754982640410,-569.39,0.00018666,2]
[378711265,1754982640420,-460.0,0.00018666,2]
[378711267,1754982640433,-469.1963376,0.00018666,2]
[378711269,1754982640442,-397.23656085,0.00018666,2]
[378711271,1754982640451,-460.0,0.00018666,2]
[378711273,1754982640460,-460.0,0.00018666,2]
[378711275,1754982640470,-527.47992235,0.00018666,2]
[378711277,1754982640479,-461.02434656,0.00018666,2]
[378711279,1754982640488,-460.0,0.00018666,2]
[378711281,1754982640499,-460.0,0.00018666,2]
[378711283,1754982640508,-460.0,0.00018666,2]
[378711285,1754982640517,-460.0,0.00018666,2]
[378711287,1754982640526,-460.0,0.00018666,2]
[378711289,1754982640536,-460.0,0.00018666,2]
[378711291,1754982640546,-460.0,0.00018666,2]
[378711293,1754982640555,-855.12,0.00018666,2]
[378711295,1754982640564,-461.60974076,0.00018666,2]
[378711297,1754982640574,-460.0,0.00018666,2]
[378711299,1754982640585,-620.28,0.00018666,2]
[378711301,1754982640594,-460.0,0.00018666,2]
[378711303,1754982640603,-573.8,0.00018666,2]
[378711305,1754982640613,-534.84590398,0.00018666,2]
[378711307,1754982640622,-460.0,0.00018666,2]
[378711309,1754982640631,-460.0,0.00018666,2]
[378711312,1754982640642,-460.0,0.00018666,2]
[378711314,1754982640655,-460.0,0.00018666,2]
[378711316,1754982640667,-460.0,0.00018666,2]
[378711319,1754982640681,-460.0,0.00018666,2]
[378711321,1754982640693,-460.0,0.00018666,2]
[378711323,1754982640705,-460.0,0.00018666,2]
[378711326,1754982640716,-461.88761408,0.00018666,2]
[378711328,1754982640726,-462.39253472,0.00018666,2]
[378711330,1754982640738,-460.0,0.00018666,2]
[378711332,1754982640749,-460.0,0.00018666,2]
[378711334,1754982640760,-460.0,0.00018666,2]
[378711337,1754982640772,-461.54439111,0.00018666,2]
[378711339,1754982640784,-460.0,0.00018666,2]
[378711341,1754982640795,-460.0,0.00018666,2]
[378711343,1754982640808,-460.0,0.00018666,2]
[378711346,1754982640819,-460.0,0.00018666,2]
[378711348,1754982640830,-460.0,0.00018666,2]
[378711350,1754982640845,-460.0,0.00018666,2]
[378711353,1754982640857,-460.0,0.00018666,2]
[378711355,1754982640871,-460.0,0.00018666,2]
[378711357,1754982640892,-460.0,0.00018666,2]
[378711359,1754982640914,-460.0,0.00018666,2]
[378711361,1754982640931,-460.0,0.00018666,2]
[378711364,1754982640945,-460.0,0.00018666,2]
[378711366,1754982640957,-461.02645025,0.00018666,2]
[378711368,1754982640967,-460.0,0.00018666,2]
[378711370,1754982640979,-460.33585521,0.00018666,2]
[378711373,1754982640991,-460.0,0.00018666,2]
[378711375,1754982641003,-460.0,0.00018666,2]
[378711377,1754982641015,-462.08144047,0.00018666,2]
[378711379,1754982641026,-461.00768615,0.00018666,2]
[378711381,1754982641037,-460.0,0.00018666,2]
[378711383,1754982641047,-462.27606829,0.00018666,2]
[378711385,1754982641058,-460.0,0.00018666,2]
[378711387,1754982641069,-460.62082489,0.00018666,2]
[378711388,1754982641080,-460.0,0.00018666,2]
[378711390,1754982641091,-460.0,0.00018666,2]
[378711391,1754982641104,-460.0,0.00018666,2]
[378711392,1754982641115,-612.28,0.00018666,2]
[378711393,1754982641127,-460.0,0.00018666,2]
[378711394,1754982641138,-62.59964636,0.00018666,2]
[378711542,1754982647642,-596.58,0.00018664,2]
[378711543,1754982647651,-460.0,0.00018665,2]
[378711544,1754982647661,-397.40035364,0.00018666,2]
[378711545,1754982647671,-493.76056773,0.00018666,2]
[378711546,1754982647690,-25.71943227,0.00018666,2]
[378711547,1754982647700,-926.76,0.00018666,2]
[378711548,1754982647709,-460.0,0.00018666,2]
[378711549,1754982647718,-460.0,0.00018666,2]
[378711550,1754982647727,-717.32,0.00018666,2]
[378711551,1754982647736,-460.0,0.00018666,2]
[378711552,1754982647745,-460.0,0.00018666,2]
[378711553,1754982647754,-437.33058615,0.00018666,2]
[378711554,1754982647763,-460.0,0.00018666,2]
[378711555,1754982647772,-463.31184418,0.00018666,2]
[378711556,1754982647782,-460.0,0.00018666,2]
[378711557,1754982647791,-533.79313914,0.00018666,2]
[378711558,1754982647800,-483.73,0.00018666,2]
[378711559,1754982647809,-460.0,0.00018666,2]
[378711560,1754982647818,-453.98976716,0.00018666,2]
[378711561,1754982647827,-460.0,0.00018666,2]
[378711562,1754982647836,-789.67,0.00018666,2]
[378711563,1754982647846,-460.0,0.00018666,2]
[378711564,1754982647855,-460.0,0.00018666,2]
[378711565,1754982647866,-460.0,0.00018666,2]
[378711566,1754982647875,-460.0,0.00018666,2]
[378711567,1754982647890,-460.0,0.00018666,2]
[378711568,1754982647899,-56.36746815,0.00018666,2]
[378711569,1754982658610,150.0,0.00019414,30]
[378711570,1754982659076,150.0,0.00020339,30]
[378711571,1754982659600,150.0,0.00021263,30]
[378711572,1754982660021,198.5,0.00022188,30]
[378711573,1754982668163,184.96418633,0.00018568,2]
[378711574,1754982687418,172.1845301,0.00018564,2]
[378711575,1754982692463,172.18453009,0.00018566,2]
[378711576,1754982697073,403.98148996,0.00018566,2]
[378711577,1754982697098,232.2857184,0.00018566,2]
[378711578,1754982705100,154.849507,0.000231,30]
[378711579,1754982712392,7087.9115971,0.00017668,2]
[378711580,1754982717153,5000.0,0.00018603,2]
[378711582,1754982740445,150.0,0.00019542,30]
[378711583,1754982740887,150.0,0.00020473,30]
[378711584,1754982741362,150.0,0.00021403,30]
[378711585,1754982741822,184.35,0.00022334,30]
[378711586,1754982755537,214.83611347,0.00018564,2]
[378711587,1754982755977,214.83611347,0.00018565,2]
[378711589,1754982820825,411.868854,0.00013699,2]
[378711590,1754982824047,150.0,0.00019411,30]
[378711591,1754982825080,150.0,0.00020335,30]
[378711592,1754982825541,150.0,0.0002126,30]
[378711593,1754982826004,170.51,0.00022184,30]
[378711594,1754982879419,154.849508,0.000231,30]
[378711595,1754982879819,179.89206476,0.00018432,2]
[378711596,1754982906321,150.0,0.00019395,30]
[378711597,1754982906792,150.0,0.00020318,30]
[378711598,1754982907224,150.0,0.00021242,30]
[378711599,1754982907654,156.98,0.00022165,30]
[378711600,1754982908163,196.22,0.00023089,30]
[378711601,1754982972447,582.29735823,0.00018564,2]
[378711602,1754982976932,6076.07218057,0.00017665,2]
[378711603,1754982976956,18823.92781943,0.00017665,2]
[378711604,1754982986731,150.0,0.00019252,30]
[378711605,1754982987145,150.0,0.00020169,30]
[378711606,1754982987612,150.0,0.00021086,30]
[378711607,1754982988593,150.0,0.00022002,30]
[378711608,1754982989045,174.31,0.00022919,30]
[378711610,1754982994486,3610.84184127,0.0001901,6]
[378711611,1754982997851,184.96418633,0.00018566,2]
[378711614,1754983065520,150.0,0.00019331,30]
[378711615,1754983065952,150.0,0.00020251,30]
[378711616,1754983066379,150.0,0.00021172,30]
[378711617,1754983066858,150.0,0.00022092,30]
[378711618,1754983067354,153.2,0.00023013,30]
[378711620,1754983069127,991.10799424,0.00017665,2]
[378711621,1754983069150,1904.13566786,0.00017665,2]
[378711622,1754983077078,3698.940379,0.00018603,2]
[378711623,1754983093700,1301.059621,0.00018603,2]
[378711624,1754983109101,3498.7044767,0.00018603,2]
[378711625,1754983125233,1501.2955233,0.00018603,2]
[378711626,1754983141040,3498.7044767,0.00018603,2]
[378711627,1754983142368,150.0,0.0001932,30]
[378711628,1754983142786,150.0,0.0002024,30]
[378711629,1754983143203,150.0,0.0002116,30]
[378711630,1754983144225,150.0,0.0002208,30]
[378711631,1754983144750,150.0,0.00023,30]
[378711632,1754983150552,4597.15985544,0.00018603,2]
[378711633,1754983150575,1748.53014456,0.00018603,2]
[378711634,1754983154870,157.057949,0.00022638,30]
[378711635,1754983156629,5000.0,0.00018603,2]
[378711636,1754983164959,5726.4833719,0.00017665,2]
[378711637,1754983172711,5000.0,0.00018603,2]
[378711638,1754983188159,2524.98648354,0.00018603,2]
[378711639,1754983188182,1053.12655239,0.00018603,2]
[378711640,1754983220901,150.0,0.0001931,30]
[378711641,1754983221372,150.0,0.0002023,30]
[378711642,1754983221877,150.0,0.0002115,30]
[378711643,1754983222404,150.0,0.00022069,30]
[378711644,1754983222836,150.0,0.00022989,30]
[378711645,1754983292773,554.33697333,0.00018563,2]
[378711646,1754983296504,150.0,0.00019271,30]
[378711647,1754983296949,150.0,0.00020189,30]
[378711648,1754983297395,150.0,0.00021106,30]
[378711649,1754983298393,150.0,0.00022024,30]
[378711650,1754983298422,327.075026,0.00018103,2]
[378711651,1754983298747,232.13470088,0.00018104,2]
[378711652,1754983305008,154.849507,0.000231,30]
[378711653,1754983371617,150.0,0.0001934,30]
[378711654,1754983372033,150.0,0.00020261,30]
[378711655,1754983447160,150.0,0.0001927,30]
[378711656,1754983447870,150.0,0.00020188,30]
[378711657,1754983451860,183.0,0.00018259,2]
[378711663,1754983521267,150.0,0.00019343,30]
[378711668,1754983672774,17650.3267474,0.00018,2]
[378711669,1754983672802,20000.0,0.00018,2]
[378711670,1754983672827,7782.35656843,0.00018,2]
[378711671,1754983676833,4551.38731453,0.00018,2]
[378711673,1754983716476,7666.25611704,0.00017,2]
[378711674,1754983716499,20000.0,0.00017,2]
[378711675,1754983716522,8485.21305936,0.00017,2]
[378711676,1754983719327,11514.78694064,0.00018,2]
[378711677,1754983719349,13595.17046497,0.00018,2]
[378711678,1754983720761,372.37422731,0.000149,2]
[378711679,1754983720934,1000.0,0.0001,2]
[378711680,1754983725053,211.35318605,0.00016,2]
[378711681,1754983726611,4821.10212167,0.0001,2]
[378711682,1754983726633,12636.37559883,0.0001,2]
[378711683,1754983727867,7363.62440117,0.00017,2]
[378711684,1754983727890,3674.54887324,0.00017,2]
[378711685,1754983734976,1744.40977,0.00017664,2]
[378711686,1754983741843,150.0,0.00017469,30]
[378711689,1754983769777,391.275411,0.00013699,2]
[378711696,1754983780404,179.91004498,0.00018432,2]
[378711701,1754983816933,150.0,0.00017329,30]
[378711702,1754983818172,485.04485162,0.00018562,2]
[378711744,1754983832643,-585.74914229,0.00018653,3]
[378711746,1754983832670,-88.77085771,0.00018653,3]
[378711748,1754983832680,-501.95430077,0.00018657,2]
[378711750,1754983832689,-300.0,0.0001866,2]
[378711752,1754983832698,-275.03851759,0.0001866,2]
[378711753,1754983832710,-255.57243791,0.0001866,2]
[378711754,1754983832721,-398.91148217,0.0001866,2]
[378711755,1754983832735,-270.47756233,0.0001866,2]
[378711756,1754983832744,-66.1239728,0.00018661,2]
[378711757,1754983832755,-393.8760272,0.00018661,2]
[378711758,1754983832764,-460.0,0.00018661,2]
[378711759,1754983832773,-94.42237016,0.00018661,2]
[378711760,1754983832794,-365.57762984,0.00018661,2]
[378711761,1754983832803,-236.19642684,0.00018661,2]
[378711762,1754983832815,-1833.45357316,0.00018661,2]
[378711763,1754983832824,-460.0,0.00018661,2]
[378711764,1754983832837,-1963.80323169,0.00018661,2]
[378711765,1754983832848,-2172.48676831,0.00018661,2]
[378711766,1754983832858,-460.0,0.00018661,2]
[378711767,1754983832867,-826.78,0.00018661,2]
[378711768,1754983832878,-460.0,0.00018661,2]
[378711769,1754983832887,-460.0,0.00018661,2]
[378711770,1754983832897,-460.0,0.00018661,2]
[378711771,1754983832907,-508.23,0.00018661,2]
[378711772,1754983832916,-460.0,0.00018661,2]
[378711773,1754983832926,-460.0,0.00018661,2]
[378711774,1754983832935,-460.0,0.00018661,2]
[378711775,1754983832944,-2960.09,0.00018661,2]
[378711776,1754983832953,-460.0,0.00018661,2]
[378711777,1754983832962,-460.0,0.00018662,2]
[378711778,1754983832972,-380.18313724,0.00018662,2]
[378711779,1754983832981,-220.85094718,0.00018662,2]
[378711780,1754983832992,-239.14905282,0.00018662,2]
[378711781,1754983833002,-460.0,0.00018662,2]
[378711782,1754983833011,-460.0,0.00018662,2]
[378711783,1754983833021,-6.14485336,0.00018662,2]
[378711784,1754983833033,-832.51514664,0.00018662,2]
[378711785,1754983833042,-460.0,0.00018662,2]
[378711786,1754983833052,-460.0,0.00018662,2]
[378711787,1754983833061,-463.85417151,0.00018662,2]
[378711788,1754983833071,-460.0,0.00018662,2]
[378711789,1754983833080,-460.0,0.00018662,2]
[378711790,1754983833090,-460.0,0.00018662,2]
[378711791,1754983833100,-460.0,0.00018662,2]
[378711792,1754983833110,-462.43664672,0.00018662,2]
[378711793,1754983833119,-460.0,0.00018662,2]
[378711794,1754983833131,-460.0,0.00018662,2]
[378711795,1754983833141,-456.67922013,0.00018662,2]
[378711796,1754983834382,200.2654932,0.00017663,2]
[378711800,1754983838449,-564.83,0.00018661,2]
[378711801,1754983838459,-2466.06,0.00018661,2]
[378711802,1754983838469,-130.09077987,0.00018662,2]
[378711803,1754983838478,-214.03662016,0.00018662,2]